fUSD/lending_fUSD_20241123
["ID","MTS","AMOUNT","RATE_DAILY","PERIOD"]
[343105011,1732357843338,-500.0,0.00064127,31]
[343105012,1732357843347,-500.0,0.00064127,31]
[343105013,1732357843356,-500.0,0.00064127,31]
[343105015,1732357843366,-500.0,0.00064127,31]
[343105017,1732357843378,-500.0,0.00064127,31]
[343105019,1732357843387,-500.0,0.00064127,31]
[343105020,1732357843397,-600.0,0.00064127,31]
[343105022,1732357843406,-6649.7147,0.00064128,2]
[343105024,1732357843415,-1000.0,0.00064128,30]
[343105025,1732357843424,-252.6413,0.00064128,2]
[343105026,1732357843433,-51751.5367,0.00064128,2]
[343105027,1732357843442,-200.0,0.00064172,2]
[343105028,1732357843452,-150.0,0.00064172,120]
[343105029,1732357843461,-203.576,0.00064172,120]
[343105030,1732357843470,-206.446,0.00064172,120]
[343105031,1732357843479,-155.311,0.00064172,120]
[343105032,1732357843489,-159.1498624,0.00064173,2]
[343105034,1732357843499,-150.1466688,0.00064173,2]
[343105036,1732357843509,-157.1614472,0.00064173,2]
[343105038,1732357843518,-159.145072,0.00064173,2]
[343105039,1732357843528,-500.0,0.00064173,2]
[343105040,1732357843537,-365.72,0.00064226,2]
[343105041,1732357843546,-365.72,0.00064243,2]
[343105042,1732357843555,-365.72,0.00064259,2]
[343105043,1732357843564,-365.72,0.00064276,2]
[343105044,1732357843574,-365.72,0.00064293,2]
[343105045,1732357843583,-365.72,0.0006431,2]
[343105046,1732357843592,-365.72,0.00064327,2]
[343105047,1732357843601,-365.72,0.00064344,2]
[343105048,1732357843611,-365.72,0.00064361,2]
[343105049,1732357843622,-365.72,0.00064378,2]
[343105050,1732357843632,-365.72,0.00064395,2]
[343105051,1732357843642,-2152.5471,0.0006441,117]
[343105052,1732357843651,-365.72,0.00064412,2]
[343105053,1732357843661,-365.72,0.00064429,2]
[343105054,1732357843670,-365.72,0.00064445,2]
[343105055,1732357843680,-365.72,0.00064462,2]
[343105056,1732357843690,-365.72,0.00064479,2]
[343105057,1732357843700,-365.72,0.00064496,2]
[343105058,1732357843709,-500.0,0.00064506,120]
[343105059,1732357843719,-365.72,0.00064513,2]
[343105060,1732357843728,-365.72,0.0006453,2]
[343105061,1732357843739,-365.72,0.00064547,2]
[343105062,1732357843748,-500.0,0.0006455,120]
[343105063,1732357843757,-300.0,0.000648,120]
[343105064,1732357843768,-500.0,0.0006482,120]
[343105065,1732357843777,-159.1514592,0.00064844,2]
[343105066,1732357843787,-159.1514592,0.00064844,2]
[343105067,1732357843796,-159.1514592,0.00064844,2]
[343105068,1732357843806,-159.145072,0.00064844,2]
[343105069,1732357843815,-159.1514592,0.00064844,2]
[343105070,1732357843825,-159.1466688,0.00064844,15]
[343105071,1732357843834,-159.145072,0.00064844,2]
[343105072,1732357843844,-159.1514592,0.00064844,3]
[343105073,1732357843854,-159.1514592,0.00064867,2]
[343105074,1732357843863,-159.1498624,0.00064867,2]
[343105075,1732357843875,-159.1514592,0.00064867,2]
[343105076,1732357843885,-159.1466688,0.00064867,2]
[343105077,1732357843895,-2152.5471,0.0006504,120]
[343105078,1732357843904,-162.36,0.00065056,2]
[343105079,1732357843914,-158.68,0.00065069,120]
[343105080,1732357843924,-500.0,0.00065076,120]
[343105081,1732357843933,-857.5947,0.0006548,30]
[343105082,1732357843943,-65885.3035,0.00065481,2]
[343105083,1732357843951,-517.31611496,0.00065568,15]
[343105084,1732357843960,-582.4959901,0.00065569,15]
[343105085,1732357843970,-157.85427512,0.00065575,28]
[343105086,1732357843980,-303.011,0.00065674,120]
[343105087,1732357843989,-1928.0,0.00065674,120]
[343105088,1732357843998,-815.0,0.00065674,2]
[343105089,1732357844007,-967.515018,0.00065674,120]
[343105090,1732357844019,-293.484982,0.00065674,120]
[343105091,1732357844028,-3380.14715969,0.00065674,120]
[343105092,1732357844039,-369.85284031,0.00065674,120]
[343105093,1732357844048,-3517.0,0.00065674,120]
[343105094,1732357844057,-918.0,0.00065674,120]
[343105095,1732357844066,-150.0,0.00065674,2]
[343105096,1732357844075,-150.0,0.00065674,120]
[343105097,1732357844085,-1257.0,0.00065674,120]
[343105098,1732357844094,-1653.09127608,0.00065674,120]
[343105099,1732357844201,-284.88904645,0.00065674,120]
[343105117,1732357845969,-517.442,0.00063283,120]
[343105118,1732357845979,-6576.3051,0.00064028,2]
[343105119,1732357845989,-159.1466688,0.00065473,2]
[343105120,1732357845999,-1288.69564109,0.00065674,120]
[343105121,1732357846011,-763.342431,0.00065674,120]
[343105122,1732357846023,-1953.98160538,0.00065674,120]
[343105123,1732357846032,-1390.01839462,0.00065674,120]
[343105124,1732357846043,-407.70451692,0.00065674,120]
[343105125,1732357846297,-1041.98334023,0.00065674,120]
[343105126,1732357846309,-1188.15293787,0.00065674,120]
[343105127,1732357846397,-388.7315552,0.00065674,120]
[343105130,1732358092515,158.44,0.00041096,2]
[343105131,1732358092721,158.44,0.00049087,2]
[343105132,1732358094805,176.31225,0.00041618,2]
[343105136,1732358122922,7457.80775,0.0005,60]
[343105137,1732358308158,250.0,0.00031,2]
[343105138,1732358309306,300.0,0.00033,2]
[343105139,1732358329217,444.43,0.00044,120]
[343105141,1732358704782,150.0,0.00034548,10]
[343105142,1732358752146,-1716.7850621,0.0005,60]
[343105143,1732358767446,158.21,0.00041096,2]
[343105144,1732358841114,-158.21,0.00048472,2]
[343105145,1732358841138,-443.63659028,0.0005,60]
[343105146,1732358845100,-626.75673924,0.0005,60]
[343105147,1732358850681,-1000.0,0.00052797,2]
[343105148,1732358854094,-2755.01385838,0.0005,60]
[343105149,1732358854115,-1087.342158,0.0005,2]
[343105150,1732358854136,-435.700523,0.00052533,5]
[343105151,1732358854158,-500.0,0.00054795,120]
[343105152,1732358854180,-188.44,0.000549,7]
[343105153,1732358854202,-188.44,0.000549,7]
[343105154,1732358854225,-1002.91695238,0.00055,120]
[343105155,1732358854249,-158.21,0.00055848,120]
[343105156,1732358854271,-158.44,0.00057078,120]
[343105157,1732358854293,-618.0,0.000582,120]
[343105158,1732358854320,-441.62512457,0.0005888,30]
[343105177,1732359032127,-29.54187543,0.0005888,30]
[343105178,1732359032139,-1000.0,0.0006,120]
[343105179,1732359032149,-54.72370457,0.0006,120]
[343105180,1732359032161,-540.18447945,0.0006,120]
[343105181,1732359032171,-200.0,0.00060656,7]
[343105182,1732359032181,-201.50468165,0.00061134,2]
[343105183,1732359032191,-798.18,0.00061234,2]
[343105184,1732359032200,-201.50468165,0.000614,2]
[343105185,1732359032210,-247.2,0.000615,7]
[343105186,1732359032219,-5090.83,0.000615,120]
[343105187,1732359032229,-211.56,0.000619,7]
[343105188,1732359032238,-900.0,0.00061982,60]
[343105189,1732359032249,-500.0,0.00061983,120]
[343105190,1732359032259,-500.0,0.00062332,120]
[343105191,1732359032269,-500.0,0.00062403,120]
[343105192,1732359032279,-150.48,0.00062541,120]
[343105193,1732359032288,-2174.17,0.00062702,7]
[343105194,1732359032297,-500.0,0.00062821,2]
[343105195,1732359032307,-250.0,0.00063059,120]
[343105196,1732359032316,-2367.56,0.00063093,63]
[343105197,1732359032325,-164.53,0.000631,2]
[343105198,1732359032334,-158.21,0.00063224,120]
[343105199,1732359032506,-23752.25195546,0.00063459,2]
[343105200,1732359032520,-147.74804454,0.00063459,2]
[343105201,1732359032530,-250.0,0.00063463,120]
[343105202,1732359032540,-798.18,0.00063498,2]
[343105203,1732359032549,-332.11,0.00063542,30]
[343105204,1732359032559,-338.777,0.00063551,120]
[343105205,1732359032569,-600.0,0.00063551,12]
[343105206,1732359032578,-1257.0,0.00063552,120]
[343105207,1732359032589,-1996.0,0.00063552,120]
[343105208,1732359032598,-1928.0,0.00063552,120]
[343105210,1732359032608,-815.0,0.00063552,2]
[343105211,1732359032617,-3750.0,0.00063552,120]
[343105213,1732359032627,-1261.0,0.00063552,120]
[343105215,1732359032638,-1545.86448748,0.00063552,120]
[343105217,1732359032650,-454.20445221,0.00063552,120]
[343105304,1732359038339,-192.94,0.000527,2]
[343105305,1732359038348,-1516.93106031,0.00063552,120]
[343105306,1732359038358,-918.0,0.00063552,120]
[343105307,1732359038368,-150.0,0.00063552,2]
[343105308,1732359038377,-131.79785559,0.00063552,120]
[343105309,1732359038391,-4921.2482873,0.00063552,120]
[343105310,1732359038522,-890.95385711,0.00063552,120]
[343105311,1732359038533,-457.73656988,0.00063552,120]
[343105312,1732359038695,-13208.26343012,0.00063552,120]
[343105313,1732359038706,-250.0,0.00063591,120]
[343105314,1732359038715,-1000.0,0.00063896,120]
[343105315,1732359038725,-571.4,0.00063911,120]
[343105316,1732359038735,-200.0,0.0006393,2]
[343105317,1732359038744,-515.9,0.00063944,30]
[343105318,1732359038754,-153.22,0.00064027,120]
[343105319,1732359038763,-1000.0,0.00064028,30]
[343105320,1732359038772,-500.0,0.00064147,120]
[343105321,1732359038781,-500.0,0.00064172,120]
[343105322,1732359038791,-500.0,0.00064306,120]
[343105323,1732359038802,-860.0,0.000646,60]
[343105324,1732359038811,-2500.0,0.0006502,120]
[343105325,1732359038820,-158.44,0.00065069,120]
[343105326,1732359038830,-428.6,0.00065211,120]
[343105327,1732359038839,-150.0,0.00065332,30]
[343105328,1732359038849,-150.0,0.00065333,30]
[343105329,1732359038859,-150.0,0.00065335,30]
[343105330,1732359038868,-150.0,0.00065352,30]
[343105331,1732359038879,-150.0,0.00065361,30]
[343105333,1732359038892,-150.0,0.00065364,30]
[343105335,1732359038902,-150.0,0.00065368,30]
[343105336,1732359038911,-150.0,0.00065372,30]
[343105337,1732359038920,-150.0,0.00065378,30]
[343105338,1732359038930,-150.0,0.00065388,30]
[343105339,1732359038940,-413.85289204,0.000654,15]
[343105341,1732359038949,-332.11,0.00065405,30]
[343105342,1732359038959,-216.098,0.00065415,120]
[343105343,1732359038969,-150.0,0.00065422,30]
[343105344,1732359038979,-150.0,0.00065434,30]
[343105345,1732359038989,-150.0,0.00065452,30]
[343105346,1732359038998,-215.61548192,0.00065454,30]
[343105347,1732359039008,-465.99679208,0.00065464,15]
[343105348,1732359039018,-150.0,0.00065467,30]
[343105349,1732359039027,-150.0,0.00065468,30]
[343105350,1732359039036,-300.0,0.00065468,30]
[343105351,1732359039046,-150.0,0.00065469,30]
[343105352,1732359039056,-332.11,0.0006549,30]
[343105353,1732359039066,-332.11,0.0006549,30]
[343105354,1732359039076,-332.11,0.0006549,30]
[343105355,1732359039085,-332.11,0.0006549,30]
[343105356,1732359039095,-1196.535,0.000655,2]
[343105357,1732359039104,-49290.33533626,0.000655,2]
[343105358,1732359039116,-2123.72,0.000655,2]
[343105359,1732359039128,-14807.20136374,0.000655,2]
[343105360,1732359039140,-150.0,0.000655,30]
[343105361,1732359039150,-150.0,0.00065513,30]
[343105362,1732359039163,-150.0,0.00065514,30]
[343105363,1732359039173,-150.0,0.00065515,30]
[343105364,1732359039183,-150.0,0.00065517,30]
[343105365,1732359039194,-150.0,0.0006552,30]
[343105366,1732359039204,-150.0,0.00065529,30]
[343105367,1732359039213,-150.0,0.0006553,30]
[343105368,1732359039223,-150.0,0.00065542,30]
[343105369,1732359039233,-150.0,0.00065549,30]
[343105370,1732359039242,-150.0,0.0006556,30]
[343105371,1732359039252,-150.0,0.00065562,30]
[343105372,1732359039262,-103.28674791,0.00065569,30]
[343105374,1732359040093,-46.71325209,0.00065569,30]
[343105375,1732359040103,-150.0,0.00065571,30]
[343105376,1732359040112,-150.0,0.00065571,30]
[343105377,1732359040122,-159.1514592,0.00065573,2]
[343105378,1732359040132,-94.57278865,0.00065575,30]
[343105379,1732359040146,-55.42721135,0.00065575,30]
[343105380,1732359040156,-332.11,0.0006559,30]
[343105381,1732359040165,-126.03194151,0.0006559,30]
[343105382,1732359040177,-206.07805849,0.0006559,30]
[343105383,1732359040186,-332.11,0.0006559,30]
[343105384,1732359040196,-332.11,0.0006559,30]
[343105385,1732359040206,-153.87,0.0006559,120]
[343105386,1732359040216,-59.28479543,0.00065592,30]
[343105387,1732359040228,-90.71520457,0.00065592,30]
[343105388,1732359040237,-150.0,0.00065595,30]
[343105389,1732359040247,-10000.0,0.00065598,120]
[343105390,1732359040256,-400.0,0.00065598,31]
[343105391,1732359040265,-123198.91863304,0.00065599,49]
[343105392,1732359040305,-1226.46098965,0.00065599,49]
[343105393,1732359040316,-2523.02,0.00065599,49]
[343105394,1732359040329,-49359.67584096,0.00065599,49]
[343105395,1732359040353,-9623.3789064,0.00065599,49]
[343105396,1732359040364,-2702.18366154,0.00065599,49]
[343105407,1732359043103,-12792.67100001,0.00065599,49]
[343105409,1732359043285,-51914.97036159,0.00065599,49]
[343105410,1732359043296,-4978.68747821,0.00065599,49]
[343105411,1732359043307,-5660.24205347,0.00065599,49]
[343105412,1732359043318,-9955.35508277,0.00065599,49]
[343105413,1732359043459,-3.15662117,0.00065599,49]
[343105426,1732359046137,-26892.33092235,0.00065599,49]
[343105427,1732359046189,-20.3352275,0.00065599,49]
[343105428,1732359046311,-435.700523,0.00065599,49]
[343105429,1732359046322,-506.21484461,0.00065599,49]
[343105430,1732359110078,1037.38092997,0.00052798,120]
[343105431,1732359112737,203.47175,0.00043066,2]
[343105432,1732359113062,203.47175,0.00048419,120]
[343105433,1732359118455,161.5545,0.00038,120]
[343105434,1732359118477,297.45994377,0.00038,120]
[343105435,1732359118500,537.49884638,0.00038,120]
[343105436,1732359118524,40.86763982,0.00038,120]
[343105437,1732359126798,324.33205049,0.0004,120]
[343105438,1732359126825,713.04887948,0.0004,120]
[343105439,1732359134424,650.5,0.00052798,2]
[343105440,1732359135550,2074.76185994,0.00043,120]
[343105441,1732359190588,1838.33649043,0.00052798,120]
[343105442,1732359198962,1838.33649043,0.00038,120]
[343105443,1732359207270,1838.33649043,0.0004,120]
[343105444,1732359215572,3676.67298085,0.00043,120]
[343105448,1732359488757,156.13,0.00041096,2]
[343105449,1732359579568,1075.77868141,0.00044,2]
[343105450,1732359602409,150.0,0.00044,2]
[343105451,1732359602699,150.0,0.000439,2]
[343105452,1732359602730,150.0,0.00044,2]
[343105453,1732359602919,150.0,0.00044,2]
[343105454,1732359603118,150.0,0.00044,2]
[343105455,1732359603306,150.0,0.00044,2]
[343105456,1732359603631,150.0,0.00044,2]
[343105457,1732359603848,244.87551712,0.00044,2]
[343105458,1732359609118,8500.0,0.00032232,6]
[343105459,1732359627891,8500.0,0.00032223,6]
[343105460,1732359646613,8500.0,0.00032214,6]
[343105462,1732359730985,987.73910177,0.00052805,120]
[343105463,1732359739310,987.73910177,0.00038,120]
[343105464,1732359747604,987.73910177,0.0004,120]
[343105465,1732359755905,1975.47820353,0.00043,120]
[343105466,1732359944112,-191.87,0.000456,7]
[343105467,1732359944134,-301.94412056,0.000459,2]
[343105468,1732360018827,17776.11511027,0.00035,10]
[343105469,1732360018859,206.60032087,0.00035,10]
[343105470,1732360018895,27406.68858694,0.00035,10]
[343105471,1732360028208,-536.1404,0.00045899,2]
[343105472,1732360028231,-60.71708717,0.00045899,2]
[343105473,1732360054087,-2368.58948981,0.00045899,2]
[343105474,1732360054110,-561.43746095,0.00046,120]
[343105480,1732360113047,250.0,0.00031,2]
[343105481,1732360114515,300.0,0.00033,2]
[343105482,1732360115762,350.0,0.00035,2]
[343105487,1732360145091,-5802.43204549,0.00045,120]
[343105488,1732360146130,-660.24795451,0.00045,120]
[343105489,1732360146152,-550.0,0.00045999,5]
[343105490,1732360146174,-2032.01486398,0.00046,120]
[343105491,1732360146196,-2469.34775442,0.00046,120]
[343105492,1732360146217,-165.3,0.00047017,2]
[343105493,1732360146239,-704.07695909,0.00048,120]
[343105498,1732360157185,-1889.37536583,0.00048,120]
[343105499,1732360157207,-2469.34775441,0.00048,120]
[343105500,1732360157230,-303.034,0.00048588,84]
[343105501,1732360157252,-8500.0,0.00048588,16]
[343105502,1732360157274,-8500.0,0.00048597,16]
[343105503,1732360157296,-8500.0,0.00048606,16]
[343105504,1732360157319,-76.39767976,0.00048759,5]
[343105505,1732360169100,-73.60232024,0.00048759,5]
[343105512,1732360214387,367.39767976,0.00035,10]
[343105513,1732360214411,320.28772414,0.00035,10]
[343105514,1732360214441,40078.33017186,0.00035,10]
[343105519,1732360232355,-156.13,0.00053082,120]
[343105520,1732360232365,-3313.16,0.00053082,30]
[343105521,1732360232375,-203.47175,0.00053772,120]
[343105522,1732360232384,-500.0,0.00054795,120]
[343105523,1732360232394,-150.0,0.0005515,2]
[343105524,1732360232403,-785.58,0.00056107,2]
[343105525,1732360232412,-585.30691732,0.000579,15]
[343105526,1732360232422,-158.79453722,0.00057973,2]
[343105527,1732360232431,-31042.2369048,0.00058,120]
[343105528,1732360232442,-419.79687613,0.00058,120]
[343105557,1732360238355,-357.92117042,0.00052705,51]
[343105558,1732360238365,-3242.17170594,0.00058,120]
[343105559,1732360238376,-2993.36140672,0.00058,120]
[343105560,1732360238387,-2561.38017796,0.00058,120]
[343105561,1732360238546,-2098.2243595,0.00058,120]
[343105564,1732360240329,-444.71953877,0.00058,120]
[343105565,1732360240341,-1672.14076206,0.00058,120]
[343105566,1732360240539,-265.4440002,0.00058,120]
[343105571,1732360243698,-1979.643962,0.00058,120]
[343105572,1732360243710,-4752.64341577,0.00058,120]
[343105573,1732360243721,-3117.16315696,0.00058,120]
[343105583,1732360246346,-706.16115869,0.00058,120]
[343105585,1732360246358,-955.3773939,0.00058,120]
[343105587,1732360246370,-382.28290073,0.00058,120]
[343105589,1732360246595,-141524.59974906,0.00058,120]
[343105590,1732360246605,-353.51628787,0.00058,30]
[343105591,1732360246614,-785.58,0.00058371,2]
[343105592,1732360246624,-250.0,0.00058771,120]
[343105593,1732360246634,-153.22,0.00058803,120]
[343105594,1732360246644,-14759.12985894,0.00058804,2]
[343105595,1732360246655,-203.47175,0.00059125,120]
[343105596,1732360246672,-250.0,0.0005974,120]
[343105597,1732360246682,-948.90100363,0.000598,120]
[343105598,1732360246692,-585.30691724,0.00060122,15]
[343105599,1732360246702,-500.0,0.0006025,2]
[343105600,1732360246712,-159.169024,0.0006025,2]
[343105601,1732360246724,-1116.6029506,0.000603,120]
[343105602,1732360246733,-785.58,0.00060635,2]
[343105603,1732360246743,-542.88,0.00060734,120]
[343105604,1732360246753,-500.0,0.00060798,2]
[343105605,1732360246763,-500.0,0.00061417,120]
[343105606,1732360246773,-278.0,0.000617,12]
[343105607,1732360246783,-223.0,0.00062,110]
[343105608,1732360246793,-500.0,0.00062099,120]
[343105609,1732360246805,-250.0,0.00062132,120]
[343105610,1732360246814,-23563.58020097,0.00062132,2]
[343105612,1732360246832,-306.62633022,0.00062132,2]
[343105613,1732360307643,158.68,0.00041096,2]
[343105619,1732360893782,50000.0,0.00052804,2]
[343105623,1732360943901,50000.0,0.00052804,3]
[343105624,1732360947443,50000.0,0.00052804,4]
[343105625,1732360950880,50000.0,0.00052804,5]
[343105626,1732360977164,13752.53791468,0.00044,30]
[343105627,1732360981882,157.59,0.00041096,2]
[343105628,1732361001438,1300.0,0.00052804,7]
[343105630,1732361108762,430989.6412412,0.00013,2]
[343105631,1732361108800,129061.73019012,0.00013,2]
[343105633,1732361109429,20142.72483022,0.0001,2]
[343105634,1732361120468,5029.81213874,9e-05,2]
[343105635,1732361132444,1036.6664162,1e-06,2]
[343105636,1732361147137,-725.91949222,0.00045,2]
[343105637,1732361147159,-5.624396,0.00046,120]
[343105639,1732361166952,2305.93390959,0.0001,2]
[343105640,1732361173527,963745.2338167,0.00043,120]
[343105641,1732361190304,1000.0,0.00043292,120]
[343105642,1732361229451,224821.82219743,0.00041642,2]
[343105644,1732361235082,-364.20436229,0.00046,120]
[343105645,1732361235103,-685.24058409,0.00049,2]
[343105646,1732361235125,-1309.98102159,0.00049,2]
[343105647,1732361235147,-644.38639994,0.000498,30]
[343105648,1732361237650,50000.0,0.00052804,2]
[343105649,1732361238513,151.61,0.00052804,20]
[343105650,1732361241610,50000.0,0.00052804,3]
[343105651,1732361245238,50000.0,0.00052804,4]
[343105652,1732361246812,-384.39162175,0.000498,30]
[343105653,1732361248842,50000.0,0.00052804,5]
[343105654,1732361251122,-3764.49045768,0.000498,30]
[343105655,1732361261090,1713.93609373,9e-05,2]
[343105656,1732361267557,23928.698912,0.00028,4]
[343105657,1732361278267,11563.17004689,0.0001,2]
[343105658,1732361279447,7209.62886337,0.000217,2]
[343105660,1732361296165,9805.28392648,0.0001439,2]
[343105661,1732361298001,324094.79537286,0.00043,120]
[343105662,1732361299346,770.569999,0.0002,2]
[343105663,1732361302575,1000.0,0.00043292,120]
[343105664,1732361320361,70904.72362212,0.000429,60]
[343105665,1732361321559,5604.0881195,0.00018,2]
[343105666,1732361322445,8002.32696938,0.0001,2]
[343105668,1732361325129,1999.999999,0.00052804,120]
[343105683,1732361360278,-271.28355391,0.00045,30]
[343105684,1732361360300,-1785.05228835,0.000451,2]
[343105685,1732361360321,-26256.01213774,0.000457,120]
[343105686,1732361362102,-3458.57141,0.000457,120]
[343105687,1732361363109,-26658.80347681,0.000457,120]
[343105688,1732361363131,-9512.59117849,0.000469,2]
[343105689,1732361366090,-27015.49536,0.000469,2]
[343105690,1732361367110,-2538.3375586,0.000469,2]
[343105691,1732361367133,-142218.49219342,0.000476,30]
[343105692,1732361367154,-2398.01500467,0.000487,120]
[343105693,1732361374117,-343.35949667,0.000487,120]
[343105694,1732361374142,-2133.21341186,0.000498,30]
[343105695,1732361374165,-191.6,0.0004999,10]
[343105696,1732361374187,-43602.99229281,0.0005,120]
[343105697,1732361374209,-1129.90580331,0.0005,2]
[343105698,1732361374237,-3952.03594234,0.0005,2]
[343105699,1732361374260,-3147.56926153,0.0005,2]
[343105700,1732361374285,-319175.71499148,0.0005,120]
[343105738,1732361431907,-159.1514592,0.00049973,2]
[343105739,1732361431916,-159.1514592,0.00049973,2]
[343105740,1732361431925,-159.145072,0.00049973,2]
[343105742,1732361431934,-159.145072,0.00049973,2]
[343105744,1732361431944,-159.1466688,0.00049973,10]
[343105746,1732361431953,-323.50710952,0.00049973,2]
[343105748,1732361431964,-176.49289048,0.00049973,2]
[343105750,1732361431974,-159.1514592,0.00049973,3]
[343105751,1732361431983,-159.1514592,0.00049973,2]
[343105752,1732361431993,-150.0,0.00049999,9]
[343105754,1732361432002,-5232.1580724,0.0005,120]
[343105757,1732361432025,-24795.64035864,0.0005,120]
[343105759,1732361432036,-260.7745,0.0005,120]
[343105799,1732361437844,-4744.8293499,0.0005,120]
[343105830,1732361439703,-6084.67542796,0.0005,120]
[343105832,1732361439890,-816.13307384,0.0005,120]
[343105833,1732361439903,-504.17794298,0.0005,120]
[343105834,1732361439918,-3842.0564362,0.0005,120]
[343105835,1732361439930,-1055.547949,0.0005,120]
[343105846,1732361442593,-592.6801185,0.0005,120]
[343105847,1732361442660,-793.31081427,0.0005,120]
[343105848,1732361442673,-443.04746471,0.0005,120]
[343105849,1732361442732,-1635.10965943,0.0005,120]
[343105850,1732361442916,-31801.5517421,0.0005,120]
[343105851,1732361442925,-500.0,0.0005,120]
[343105852,1732361442935,-159.1498624,0.00050873,2]
[343105853,1732361442945,-159.1466688,0.00050873,2]
[343105854,1732361442955,-159.1514592,0.00050873,2]
[343105855,1732361442965,-159.1514592,0.00050873,2]
[343105856,1732361442975,-500.0,0.00050899,31]
[343105857,1732361442983,-240.0,0.00050899,31]
[343105858,1732361442993,-500.0,0.00050899,31]
[343105859,1732361443002,-500.0,0.00050899,31]
[343105860,1732361443012,-500.0,0.00050899,31]
[343105861,1732361443023,-500.0,0.00050899,31]
[343105862,1732361443033,-500.0,0.00050899,31]
[343105863,1732361443043,-3803.41312384,0.000509,120]
[343105864,1732361443055,-3914.10997595,0.000509,120]
[343105865,1732361443147,-81.29527051,0.000509,120]
[343105875,1732361445467,-625.2600001,0.000509,120]
[343105876,1732361445578,-5847.87733091,0.000509,120]
[343105877,1732361445601,-2412.69574429,0.000509,120]
[343105878,1732361445612,-32420.58142189,0.000509,120]
[343105879,1732361445824,-21290.8774,0.000509,120]
[343105881,1732361470335,50000.0,0.00052804,2]
[343105882,1732361474956,50000.0,0.00052804,3]
[343105883,1732361482003,50000.0,0.00052804,4]
[343105884,1732361485244,50000.0,0.00052804,5]
[343105889,1732361690773,3178.73064599,0.000385,120]
[343105890,1732361693838,186.528,0.00041096,2]
[343105891,1732361694811,190.681,0.00041096,2]
[343105892,1732361738411,157.17,0.00041096,2]
[343105897,1732361901789,151.0,0.0003,120]
[343105898,1732361902384,151.0,0.00030932,120]
[343105899,1732361902944,151.0,0.00031863,120]
[343105900,1732361903535,151.0,0.00032795,120]
[343105901,1732361904095,151.0,0.00033726,120]
[343105902,1732361904658,151.0,0.00034658,120]
[343105903,1732361905228,151.0,0.00035589,120]
[343105904,1732361905813,151.0,0.00036521,120]
[343105905,1732361906698,151.0,0.00037452,120]
[343105906,1732361907282,151.0,0.00038384,120]
[343105907,1732361907906,151.0,0.00039315,120]
[343105908,1732361908488,151.0,0.00040247,120]
[343105909,1732361909063,151.0,0.00041178,120]
[343105910,1732361909621,151.0,0.0004211,120]
[343105911,1732361910182,151.0,0.00043041,120]
[343105912,1732361912284,151.0,0.00043973,120]
[343105913,1732361920270,250.0,0.00031,2]
[343105914,1732361921517,300.0,0.00033,2]
[343105915,1732361922773,350.0,0.00035,2]
[343105916,1732361924030,400.0,0.00037,2]
[343105917,1732361925272,450.0,0.00039,2]
[343105919,1732362043337,-151.0,0.00044904,120]
[343105920,1732362043362,-151.0,0.00045836,120]
[343105921,1732362043384,-151.0,0.00046767,120]
[343105922,1732362043405,-151.0,0.00047699,120]
[343105923,1732362043428,-151.0,0.0004863,120]